lending/lending_fUSD_20240621
["ID","MTS","AMOUNT","RATE_DAILY","PERIOD"]
[330053628,1718973070451,-500.0,0.00022191,4]
[330053629,1718973070468,-2537.61,0.00022191,4]
[330053630,1718973070485,-500.0,0.00022191,4]
[330053631,1718973070501,-500.0,0.00022191,4]
[330053632,1718973070517,-500.0,0.00022191,4]
[330053633,1718973070533,-500.0,0.00022191,4]
[330053634,1718973070549,-500.0,0.00022191,4]
[330053635,1718973070565,-1179.25,0.00022191,4]
[330053636,1718973070581,-500.0,0.00022191,4]
[330053637,1718973070597,-500.0,0.00022191,4]
[330053638,1718973070613,-500.0,0.00022191,4]
[330053639,1718973070628,-2268.25,0.00022191,4]
[330053640,1718973070645,-1104.73,0.00022191,4]
[330053641,1718973070660,-1318.75,0.00022191,4]
[330053642,1718973070676,-500.0,0.00022191,4]
[330053643,1718973070693,-500.0,0.00022191,4]
[330053644,1718973070709,-515.95868231,0.00022191,4]
[330053645,1718973070724,-500.0,0.00022191,4]
[330053646,1718973070739,-500.0,0.00022191,4]
[330053647,1718973070755,-960.18,0.00022191,4]
[330053648,1718973070770,-500.0,0.00022191,4]
[330053649,1718973070785,-500.0,0.00022191,4]
[330053650,1718973070801,-849.1,0.00022191,4]
[330053651,1718973070817,-500.0,0.00022191,4]
[330053652,1718973070832,-2099.36,0.00022191,4]
[330053653,1718973070848,-1235.58,0.00022191,4]
[330053654,1718973070863,-943.42,0.00022191,4]
[330053655,1718973070878,-2858.47,0.00022191,4]
[330053656,1718973070895,-500.0,0.00022191,4]
[330053657,1718973070912,-500.0,0.00022191,4]
[330053658,1718973070931,-1875.97,0.00022191,4]
[330053659,1718973070949,-500.0,0.00022191,4]
[330053660,1718973070964,-500.0,0.00022191,4]
[330053661,1718973070979,-286.28,0.00022191,4]
[330053662,1718973070995,-625.14,0.00022191,4]
[330053663,1718973071010,-500.0,0.00022191,4]
[330053664,1718973071026,-500.0,0.00022191,4]
[330053665,1718973071042,-1017.8,0.00022191,4]
[330053666,1718973071057,-500.0,0.00022191,4]
[330053667,1718973071073,-500.0,0.00022191,4]
[330053668,1718973071089,-1483.19,0.00022191,4]
[330053669,1718973071105,-500.0,0.00022191,4]
[330053670,1718973071120,-548.6,0.00022191,4]
[330053671,1718973071139,-500.0,0.00022191,4]
[330053672,1718973071155,-500.0,0.00022191,4]
[330053673,1718973071170,-500.0,0.00022191,4]
[330053674,1718973071185,-500.0,0.00022191,4]
[330053675,1718973071201,-500.0,0.00022191,4]
[330053676,1718973071216,-500.0,0.00022191,4]
[330053677,1718973071230,-500.0,0.00022191,4]
[330053678,1718973071245,-497.33809475,0.00022191,4]
[330053679,1718973071260,-856.42,0.00022191,4]
[330053680,1718973071274,-1860.28,0.00022191,4]
[330053681,1718973071289,-1108.06,0.00022191,4]
[330053682,1718973071306,-703.33,0.00022191,4]
[330053683,1718973071321,-500.0,0.00022191,4]
[330053684,1718973071336,-2390.24,0.00022191,4]
[330053685,1718973071352,-500.0,0.00022191,4]
[330053686,1718973071372,-1598.97,0.00022191,4]
[330053687,1718973071389,-500.0,0.00022191,4]
[330053688,1718973071405,-1684.87,0.00022191,4]
[330053689,1718973071421,-500.0,0.00022191,4]
[330053690,1718973071436,-561.11,0.00022191,4]
[330053691,1718973071456,-500.0,0.00022191,4]
[330053692,1718973071471,-500.0,0.00022191,4]
[330053693,1718973071486,-1280.4,0.00022191,4]
[330053694,1718973071503,-736.13,0.00022191,4]
[330053695,1718973071517,-500.0,0.00022191,4]
[330053696,1718973071532,-5000.0,0.00022191,4]
[330053697,1718973071547,-500.0,0.00022191,4]
[330053698,1718973071562,-1660.02,0.00022191,4]
[330053699,1718973071577,-528.58,0.00022191,4]
[330053700,1718973071591,-949.08,0.00022191,4]
[330053701,1718973071606,-500.0,0.00022191,4]
[330053702,1718973071621,-1881.04,0.00022191,4]
[330053703,1718973071639,-500.0,0.00022191,4]
[330053704,1718973071655,-2457.65,0.00022191,4]
[330053705,1718973071670,-500.0,0.00022191,4]
[330053706,1718973071686,-751.76,0.00022191,4]
[330053707,1718973071701,-500.0,0.00022191,4]
[330053708,1718973071717,-866.14,0.00022191,4]
[330053709,1718973071732,-500.0,0.00022191,4]
[330053710,1718973071748,-500.0,0.00022191,4]
[330053711,1718973071765,-500.0,0.00022191,4]
[330053712,1718973071780,-654.59,0.00022191,4]
[330053713,1718973071790,-500.0,0.00022191,4]
[330053714,1718973071800,-1140.88,0.00022191,4]
[330053715,1718973071810,-500.0,0.00022191,4]
[330053716,1718973072140,-500.0,0.00022191,4]
[330053717,1718973072185,-500.0,0.00022191,4]
[330053718,1718973072202,-500.0,0.00022191,4]
[330053719,1718973072212,-666.96,0.00022191,4]
[330053720,1718973072222,-1719.35,0.00022191,4]
[330053721,1718973072232,-595.71832581,0.00022191,4]
[330053722,1718973072241,-604.2,0.00022191,4]
[330053723,1718973072251,-500.0,0.00022191,4]
[330053724,1718973072262,-500.0,0.00022191,4]
[330053725,1718973072272,-2017.33,0.00022191,4]
[330053726,1718973072282,-1611.61,0.00022191,4]
[330053727,1718973072291,-909.91,0.00022191,4]
[330053728,1718973072301,-223.88685829,0.00022191,4]
[330053729,1718973072310,-500.0,0.00022191,4]
[330053730,1718973072319,-500.0,0.00022191,4]
[330053731,1718973072329,-500.0,0.00022191,4]
[330053732,1718973072338,-500.0,0.00022191,4]
[330053733,1718973072348,-500.0,0.00022191,4]
[330053734,1718973072358,-500.0,0.00022191,4]
[330053735,1718973072371,-500.0,0.00022191,4]
[330053736,1718973072381,-716.46,0.00022191,4]
[330053737,1718973072392,-1790.78,0.00022191,4]
[330053738,1718973072402,-653.43,0.00022191,4]
[330053739,1718973072413,-549.13,0.00022191,4]
[330053740,1718973072422,-872.77,0.00022191,4]
[330053741,1718973072433,-500.0,0.00022191,4]
[330053742,1718973072443,-500.0,0.00022191,4]
[330053743,1718973072453,-1364.37,0.00022191,4]
[330053744,1718973072464,-2154.96,0.00022191,4]
[330053745,1718973072474,-500.0,0.00022191,2]
[330053746,1718973072484,-582.55,0.00022191,4]
[330053747,1718973072495,-500.0,0.00022191,4]
[330053748,1718973072504,-500.0,0.00022191,4]
[330053749,1718973072514,-500.0,0.00022191,4]
[330053750,1718973072523,-500.0,0.00022191,4]
[330053751,1718973072533,-500.0,0.00022191,4]
[330053752,1718973072542,-500.0,0.00022191,4]
[330053753,1718973072552,-871.33,0.00022191,4]
[330053754,1718973072562,-500.0,0.00022191,4]
[330053755,1718973072572,-584.54,0.00022191,4]
[330053756,1718973072584,-769.13,0.00022191,4]
[330053757,1718973072593,-500.0,0.00022191,4]
[330053758,1718973072602,-500.0,0.00022191,4]
[330053759,1718973072613,-500.0,0.00022191,4]
[330053760,1718973072623,-1299.6,0.00022191,4]
[330053761,1718973072633,-500.0,0.00022191,4]
[330053762,1718973072645,-542.86494921,0.00022191,4]
[330053763,1718973072654,-1037.2,0.00022191,4]
[330053764,1718973072663,-818.39,0.00022191,4]
[330053765,1718973072672,-500.0,0.00022191,4]
[330053766,1718973072681,-277.229515,0.00022191,7]
[330053767,1718973072691,-500.0,0.00022191,4]
[330053768,1718973072700,-896.01,0.00022191,4]
[330053769,1718973072709,-500.0,0.00022191,4]
[330053770,1718973072718,-500.0,0.00022191,4]
[330053771,1718973072727,-748.27,0.00022191,4]
[330053772,1718973072737,-500.0,0.00022191,4]
[330053773,1718973072746,-395.88486976,0.00022191,4]
[330053774,1718973072757,-500.0,0.00022191,4]
[330053775,1718973072767,-985.21,0.00022191,4]
[330053776,1718973072779,-500.0,0.00022191,4]
[330053777,1718973072790,-277.229515,0.00022191,7]
[330053778,1718973072800,-500.0,0.00022191,4]
[330053779,1718973072810,-500.0,0.00022191,4]
[330053780,1718973072820,-725.53,0.00022191,4]
[330053781,1718973072829,-921.74,0.00022191,4]
[330053782,1718973072838,-500.0,0.00022191,4]
[330053783,1718973072847,-749.94,0.00022191,4]
[330053784,1718973072856,-500.0,0.00022191,4]
[330053785,1718973072865,-598.82,0.00022191,4]
[330053786,1718973072874,-500.0,0.00022191,4]
[330053787,1718973072884,-900.61,0.00022191,4]
[330053788,1718973072894,-500.0,0.00022191,4]
[330053789,1718973072903,-644.38,0.00022191,4]
[330053790,1718973072911,-500.0,0.00022191,4]
[330053791,1718973072922,-500.0,0.00022191,4]
[330053792,1718973072932,-500.0,0.00022191,4]
[330053793,1718973072942,-544.92891396,0.00022191,4]
[330053794,1718973072952,-500.0,0.00022191,4]
[330053795,1718973072962,-1887.71,0.00022191,4]
[330053796,1718973072971,-500.0,0.00022191,4]
[330053797,1718973072981,-1278.12,0.00022191,4]
[330053798,1718973072991,-662.12,0.00022191,4]
[330053799,1718973073001,-500.0,0.00022191,4]
[330053800,1718973073010,-500.0,0.00022191,4]
[330053801,1718973073021,-500.0,0.00022191,4]
[330053802,1718973073032,-500.0,0.00022191,4]
[330053803,1718973073041,-2264.46,0.00022191,4]
[330053804,1718973073050,-500.0,0.00022191,4]
[330053805,1718973073059,-1729.65,0.00022191,4]
[330053806,1718973073068,-500.0,0.00022191,4]
[330053807,1718973073078,-508.96027307,0.00022191,4]
[330053808,1718973073087,-500.0,0.00022191,4]
[330053809,1718973073097,-760.64,0.00022191,4]
[330053810,1718973073106,-500.0,0.00022191,4]
[330053811,1718973073115,-500.0,0.00022191,4]
[330053812,1718973073124,-925.28,0.00022191,4]
[330053813,1718973073133,-1034.2,0.00022191,4]
[330053814,1718973073144,-500.0,0.00022191,4]
[330053815,1718973073153,-500.0,0.00022191,4]
[330053816,1718973073162,-500.0,0.00022191,4]
[330053817,1718973073171,-500.0,0.00022191,4]
[330053818,1718973073180,-2355.82,0.00022191,4]
[330053819,1718973073190,-595.81,0.00022191,4]
[330053820,1718973073199,-500.0,0.00022191,4]
[330053821,1718973073208,-500.0,0.00022191,4]
[330053822,1718973073218,-1395.55,0.00022191,4]
[330053823,1718973073228,-500.0,0.00022191,4]
[330053824,1718973073237,-590.06,0.00022191,4]
[330053825,1718973073246,-500.0,0.00022191,4]
[330053826,1718973073256,-1827.34,0.00022191,4]
[330053827,1718973073266,-500.0,0.00022191,4]
[330053828,1718973073276,-995.75,0.00022191,4]
[330053829,1718973073285,-2131.11,0.00022191,4]
[330053830,1718973073295,-524.13,0.00022191,4]
[330053831,1718973073305,-500.0,0.00022191,4]
[330053832,1718973073314,-500.0,0.00022191,4]
[330053833,1718973073324,-1410.72,0.00022191,4]
[330053834,1718973073334,-841.72,0.00022191,4]
[330053835,1718973073343,-500.0,0.00022191,4]
[330053836,1718973073355,-1568.4,0.00022191,4]
[330053837,1718973073367,-500.0,0.00022191,4]
[330053838,1718973073377,-500.0,0.00022191,4]
[330053839,1718973073386,-309.88,0.00022191,4]
[330053840,1718973073395,-2126.42,0.00022191,4]
[330053841,1718973073406,-687.81,0.00022191,4]
[330053842,1718973073415,-500.0,0.00022191,4]
[330053843,1718973073424,-1697.9,0.00022191,4]
[330053844,1718973073434,-500.0,0.00022191,4]
[330053845,1718973073444,-1357.63,0.00022191,4]
[330053846,1718973073454,-500.0,0.00022191,4]
[330053847,1718973073463,-500.0,0.00022191,4]
[330053848,1718973073472,-500.0,0.00022191,4]
[330053849,1718973073481,-500.0,0.00022191,4]
[330053850,1718973073490,-1145.64,0.00022191,4]
[330053851,1718973073499,-1852.52,0.00022191,4]
[330053852,1718973073508,-810.14,0.00022191,4]
[330053853,1718973073518,-500.0,0.00022191,4]
[330053854,1718973073527,-399.78,0.00022191,4]
[330053855,1718973073537,-867.82,0.00022191,4]
[330053856,1718973073546,-747.65,0.00022191,4]
[330053857,1718973073556,-643.02,0.00022191,4]
[330053858,1718973073565,-1491.63,0.00022191,4]
[330053859,1718973073574,-500.0,0.00022191,4]
[330053860,1718973073584,-500.0,0.00022191,4]
[330053861,1718973073593,-866.29,0.00022191,4]
[330053862,1718973073602,-516.53,0.00022191,4]
[330053863,1718973073611,-505.5254376,0.00022191,4]
[330053864,1718973073620,-500.0,0.00022191,4]
[330053865,1718973073630,-500.0,0.00022191,4]
[330053866,1718973073640,-500.0,0.00022191,4]
[330053867,1718973073649,-591.39,0.00022191,4]
[330053868,1718973073659,-500.0,0.00022191,4]
[330053869,1718973073670,-193.33892142,0.00022191,4]
[330053870,1718973073679,-500.0,0.00022191,4]
[330053871,1718973073688,-502.47,0.00022191,4]
[330053872,1718973073696,-500.0,0.00022191,4]
[330053873,1718973073705,-1994.89,0.00022191,4]
[330053874,1718973073714,-500.0,0.00022191,4]
[330053875,1718973073723,-796.58,0.00022191,4]
[330053876,1718973073732,-500.0,0.00022191,4]
[330053877,1718973073741,-500.0,0.00022191,4]
[330053878,1718973073750,-500.0,0.00022191,4]
[330053879,1718973073759,-880.62,0.00022191,4]
[330053880,1718973073768,-1123.56,0.00022191,4]
[330053881,1718973073777,-500.0,0.00022191,4]
[330053882,1718973073786,-500.0,0.00022191,4]
[330053883,1718973073795,-243.84989707,0.00022191,4]
[330053884,1718973073805,-841.63,0.00022191,4]
[330053885,1718973073814,-500.0,0.00022191,4]
[330053886,1718973073823,-500.0,0.00022191,4]
[330053887,1718973073832,-500.0,0.00022191,4]
[330053888,1718973073841,-500.0,0.00022191,4]
[330053889,1718973073850,-870.82,0.00022191,4]
[330053890,1718973073859,-1240.11,0.00022191,4]
[330053891,1718973073868,-618.2,0.00022191,4]
[330053892,1718973073878,-500.0,0.00022191,4]
[330053893,1718973073888,-500.0,0.00022191,4]
[330053894,1718973073896,-1815.67,0.00022191,4]
[330053895,1718973073905,-797.79,0.00022191,4]
[330053896,1718973073914,-500.0,0.00022191,4]
[330053897,1718973073923,-683.32,0.00022191,4]
[330053898,1718973073932,-500.0,0.00022191,4]
[330053899,1718973073941,-1381.31,0.00022191,4]
[330053900,1718973073950,-648.58,0.00022191,4]
[330053901,1718973073959,-2161.49,0.00022191,4]
[330053902,1718973073969,-1949.39,0.00022191,4]
[330053903,1718973073978,-705.76,0.00022191,4]
[330053904,1718973073988,-500.0,0.00022191,4]
[330053905,1718973073997,-1168.66,0.00022191,4]
[330053906,1718973074008,-500.0,0.00022191,4]
[330053907,1718973074017,-500.0,0.00022191,4]
[330053908,1718973074026,-1026.24,0.00022191,4]
[330053909,1718973074035,-720.04,0.00022191,4]
[330053910,1718973074044,-427.60763739,0.00022191,4]
[330053911,1718973074054,-505.72,0.00022191,4]
[330053912,1718973074064,-500.0,0.00022191,4]
[330053913,1718973074074,-513.15620892,0.00022191,4]
[330053914,1718973074083,-500.0,0.00022191,4]
[330053915,1718973074093,-619.74,0.00022191,4]
[330053916,1718973074103,-500.0,0.00022191,4]
[330053917,1718973074112,-1609.15,0.00022191,4]
[330053918,1718973074122,-500.0,0.00022191,4]
[330053919,1718973074131,-500.0,0.00022191,4]
[330053920,1718973074141,-500.0,0.00022191,4]
[330053921,1718973074150,-500.0,0.00022191,4]
[330053922,1718973074159,-500.0,0.00022191,4]
[330053923,1718973074169,-500.0,0.00022191,4]
[330053924,1718973074178,-500.0,0.00022191,4]
[330053925,1718973074188,-604.99,0.00022191,4]
[330053926,1718973074198,-500.0,0.00022191,4]
[330053927,1718973074207,-500.0,0.00022191,4]
[330053928,1718973074216,-500.0,0.00022191,4]
[330053929,1718973074225,-1038.54,0.00022191,4]
[330053930,1718973074234,-500.0,0.00022191,4]
[330053931,1718973074244,-776.31,0.00022191,4]
[330053932,1718973074253,-500.0,0.00022191,4]
[330053933,1718973074262,-2603.11,0.00022191,4]
[330053934,1718973074271,-1618.51,0.00022191,4]
[330053935,1718973074282,-505.58,0.00022191,4]
[330053936,1718973074292,-500.0,0.00022191,4]
[330053937,1718973074302,-500.0,0.00022191,4]
[330053938,1718973074312,-1001.49,0.00022191,4]
[330053939,1718973074322,-500.0,0.00022191,4]
[330053940,1718973074332,-658.98,0.00022191,4]
[330053941,1718973074342,-500.0,0.00022191,4]
[330053942,1718973074354,-500.0,0.00022191,4]
[330053943,1718973074366,-500.0,0.00022191,4]
[330053944,1718973074377,-1174.46,0.00022191,4]
[330053945,1718973074387,-562.89837957,0.00022191,4]
[330053946,1718973074398,-500.0,0.00022191,4]
[330053947,1718973074412,-1394.06,0.00022191,4]
[330053948,1718973074421,-2583.86,0.00022191,4]
[330053949,1718973074430,-500.0,0.00022191,4]
[330053950,1718973074439,-500.0,0.00022191,4]
[330053951,1718973074451,-500.0,0.00022191,4]
[330053952,1718973074460,-500.0,0.00022191,4]
[330053953,1718973074469,-500.0,0.00022191,4]
[330053954,1718973074478,-500.0,0.00022191,4]
[330053955,1718973074487,-536.80297454,0.00022191,4]
[330053956,1718973074496,-1819.66,0.00022191,4]
[330053957,1718973074505,-500.0,0.00022191,4]
[330053958,1718973074515,-1944.92,0.00022191,4]
[330053959,1718973074523,-161.37,0.00022191,4]
[330053960,1718973074533,-1135.04,0.00022191,4]
[330053961,1718973074543,-621.21,0.00022191,4]
[330053962,1718973074551,-571.23,0.00022191,4]
[330053963,1718973074561,-639.83,0.00022191,4]
[330053964,1718973074570,-2512.54,0.00022191,4]
[330053965,1718973074580,-500.0,0.00022191,4]
[330053966,1718973074589,-500.0,0.00022191,4]
[330053967,1718973074598,-810.08,0.00022191,4]
[330053968,1718973074607,-653.01,0.00022191,4]
[330053969,1718973074616,-500.0,0.00022191,4]
[330053970,1718973074625,-1333.98,0.00022191,4]
[330053971,1718973074635,-500.0,0.00022191,4]
[330053972,1718973074646,-2474.29,0.00022191,4]
[330053973,1718973074655,-1604.69,0.00022191,4]
[330053974,1718973074665,-500.0,0.00022191,4]
[330053975,1718973074674,-600.89051624,0.00022191,4]
[330053976,1718973074684,-500.0,0.00022191,4]
[330053977,1718973074693,-500.0,0.00022191,4]
[330053978,1718973074703,-837.4,0.00022191,4]
[330053979,1718973074712,-500.0,0.00022191,4]
[330053980,1718973074722,-753.28,0.00022191,4]
[330053981,1718973074732,-500.0,0.00022191,4]
[330053982,1718973074742,-500.0,0.00022191,2]
[330053983,1718973074751,-2346.85,0.00022191,4]
[330053984,1718973074761,-400.839227,0.00022191,4]
[330053985,1718973074770,-1718.3,0.00022191,4]
[330053986,1718973074780,-1957.2,0.00022191,4]
[330053987,1718973074789,-1525.14,0.00022191,4]
[330053988,1718973074798,-500.0,0.00022191,4]
[330053989,1718973074808,-528.55,0.00022191,4]
[330053990,1718973074817,-500.0,0.00022191,4]
[330053991,1718973074826,-1229.16,0.00022191,4]
[330053992,1718973074835,-536.22256385,0.00022191,4]
[330053993,1718973074845,-1952.1,0.00022191,4]
[330053994,1718973074856,-500.0,0.00022191,4]
[330053995,1718973074866,-382.17778523,0.00022191,4]
[330053996,1718973074876,-500.0,0.00022191,4]
[330053997,1718973074887,-500.0,0.00022191,4]
[330053998,1718973074899,-500.0,0.00022191,4]
[330053999,1718973074911,-2193.03,0.00022191,4]
[330054000,1718973074922,-706.78,0.00022191,4]
[330054001,1718973074933,-1848.21,0.00022191,4]
[330054002,1718973074943,-500.0,0.00022191,4]
[330054003,1718973074954,-624.16,0.00022191,4]
[330054004,1718973074963,-500.0,0.00022191,4]
[330054005,1718973074973,-591.01,0.00022191,4]
[330054006,1718973074982,-500.0,0.00022191,4]
[330054007,1718973074992,-562.5,0.00022191,4]
[330054008,1718973075002,-500.0,0.00022191,4]
[330054009,1718973075011,-500.0,0.00022191,4]
[330054010,1718973075021,-500.0,0.00022191,4]
[330054011,1718973075030,-500.0,0.00022191,4]
[330054012,1718973075039,-500.0,0.00022191,4]
[330054013,1718973075049,-500.0,0.00022191,4]
[330054014,1718973075058,-500.0,0.00022191,4]
[330054015,1718973075067,-500.0,0.00022191,4]
[330054016,1718973075077,-500.0,0.00022191,4]
[330054017,1718973075087,-2947.73,0.00022191,4]
[330054018,1718973075096,-531.69,0.00022191,4]
[330054019,1718973075105,-1350.34,0.00022191,4]
[330054020,1718973075115,-525.75231362,0.00022191,4]
[330054021,1718973075124,-2331.11,0.00022191,4]
[330054022,1718973075134,-500.0,0.00022191,4]
[330054023,1718973075146,-1496.38,0.00022191,4]
[330054024,1718973075155,-500.0,0.00022191,4]
[330054025,1718973075164,-1623.88,0.00022191,4]
[330054026,1718973075173,-500.0,0.00022191,4]
[330054027,1718973075182,-512.17704764,0.00022191,4]
[330054028,1718973075192,-500.0,0.00022191,4]
[330054029,1718973075201,-1163.89,0.00022191,4]
[330054030,1718973075211,-500.0,0.00022191,4]
[330054031,1718973075221,-667.41,0.00022191,4]
[330054032,1718973075230,-1404.16,0.00022191,4]
[330054033,1718973075239,-628.16,0.00022191,4]
[330054034,1718973075248,-805.07,0.00022191,4]
[330054035,1718973075258,-500.0,0.00022191,4]
[330054036,1718973075269,-765.74,0.00022191,4]
[330054037,1718973075279,-500.0,0.00022191,4]
[330054038,1718973075289,-500.0,0.00022191,4]
[330054039,1718973075300,-1917.4,0.00022191,4]
[330054040,1718973075311,-363.00389051,0.00022191,4]
[330054041,1718973075322,-500.0,0.00022191,4]
[330054042,1718973075332,-500.0,0.00022191,4]
[330054043,1718973075341,-500.0,0.00022191,4]
[330054044,1718973075351,-500.0,0.00022191,4]
[330054045,1718973075367,-500.0,0.00022191,4]
[330054046,1718973075376,-500.0,0.00022191,4]
[330054047,1718973075385,-8457.45,0.00022191,4]
[330054048,1718973075599,-500.0,0.00022191,4]
[330054049,1718973075616,-500.0,0.00022191,4]
[330054050,1718973075626,-1736.26,0.00022191,4]
[330054051,1718973075635,-500.0,0.00022191,4]
[330054052,1718973075647,-500.0,0.00022191,4]
[330054053,1718973075656,-500.0,0.00022191,4]
[330054054,1718973075665,-500.0,0.00022191,4]
[330054055,1718973075675,-500.0,0.00022191,4]
[330054056,1718973075684,-1673.18,0.00022191,4]
[330054057,1718973075694,-500.0,0.00022191,4]
[330054058,1718973075703,-638.41,0.00022191,4]
[330054059,1718973075713,-1599.12,0.00022191,4]
[330054060,1718973075723,-500.0,0.00022191,4]
[330054061,1718973075733,-500.0,0.00022191,4]
[330054062,1718973075742,-945.51,0.00022191,4]
[330054063,1718973075753,-500.0,0.00022191,4]
[330054064,1718973075763,-500.0,0.00022191,4]
[330054065,1718973075773,-500.0,0.00022191,4]
[330054066,1718973075783,-2988.12,0.00022191,4]
[330054067,1718973075792,-500.0,0.00022191,32]
[330054068,1718973075802,-500.0,0.00022191,4]
[330054069,1718973075811,-917.73,0.00022191,4]
[330054070,1718973075820,-500.0,0.00022191,4]
[330054071,1718973075831,-1026.54,0.00022191,4]
[330054072,1718973075840,-1827.66,0.00022191,4]
[330054073,1718973075850,-530.22,0.00022191,4]
[330054074,1718973075859,-2155.52,0.00022191,4]
[330054075,1718973075870,-500.0,0.00022191,4]
[330054076,1718973075879,-2002.2,0.00022191,4]
[330054077,1718973075891,-500.0,0.00022191,4]
[330054078,1718973075900,-500.0,0.00022191,4]
[330054079,1718973075910,-2722.49,0.00022191,4]
[330054080,1718973075919,-1420.99,0.00022191,4]
[330054081,1718973075928,-500.0,0.00022191,4]
[330054082,1718973075938,-500.0,0.00022191,4]
[330054083,1718973075947,-500.0,0.00022191,4]
[330054084,1718973075956,-500.0,0.00022191,4]
[330054085,1718973075966,-1391.4,0.00022191,4]
[330054086,1718973075975,-500.0,0.00022191,4]
[330054087,1718973075984,-1489.13,0.00022191,4]
[330054088,1718973075994,-500.0,0.00022191,4]
[330054089,1718973076003,-1702.47,0.00022191,4]
[330054090,1718973076013,-1134.68,0.00022191,4]
[330054091,1718973076022,-500.0,0.00022191,4]
[330054092,1718973076032,-787.22,0.00022191,4]
[330054093,1718973076041,-500.0,0.00022191,4]
[330054094,1718973076051,-669.57,0.00022191,4]
[330054095,1718973076060,-500.0,0.00022191,4]
[330054096,1718973076070,-500.0,0.00022191,4]
[330054097,1718973076080,-500.0,0.00022191,4]
[330054098,1718973076089,-500.0,0.00022191,4]
[330054099,1718973076098,-500.0,0.00022191,4]
[330054100,1718973076108,-500.0,0.00022191,4]
[330054101,1718973076117,-500.0,0.00022191,4]
[330054102,1718973076126,-500.0,0.00022191,4]
[330054103,1718973076136,-500.0,0.00022191,4]
[330054104,1718973076146,-1449.14,0.00022191,4]
[330054105,1718973076155,-708.36,0.00022191,4]
[330054106,1718973076165,-16282.7,0.00022191,4]
[330054107,1718973076174,-500.0,0.00022191,4]
[330054108,1718973076184,-1116.91,0.00022191,4]
[330054109,1718973076193,-500.0,0.00022191,4]
[330054110,1718973076203,-500.0,0.00022191,4]
[330054111,1718973076212,-1125.69,0.00022191,4]
[330054112,1718973076221,-604.75,0.00022191,4]
[330054113,1718973076231,-500.0,0.00022191,4]
[330054114,1718973076240,-500.0,0.00022191,4]
[330054115,1718973076250,-500.0,0.00022191,4]
[330054116,1718973076260,-1462.93,0.00022191,4]
[330054117,1718973076270,-860.75,0.00022191,4]
[330054118,1718973076280,-1667.43,0.00022191,4]
[330054119,1718973076291,-500.0,0.00022191,4]
[330054120,1718973076302,-662.62,0.00022191,4]
[330054121,1718973076314,-500.0,0.00022191,4]
[330054122,1718973076325,-500.0,0.00022191,4]
[330054123,1718973076336,-5139.2,0.00022191,4]
[330054124,1718973076347,-500.0,0.00022191,4]
[330054125,1718973076359,-1147.2,0.00022191,4]
[330054126,1718973076374,-705.64,0.00022191,4]
[330054127,1718973076384,-518.18201,0.00022191,4]